[Event "*** Titled Tuesday 3|2 Blitz"]
[Site "Chess.com"]
[Date "2016.05.03"]
[Round "8"]
[White "yian123"]
[Black "HansCoolNiemann"]
[Result "1-0"]
[WhiteElo "2451"]
[BlackElo "2267"]
[TimeControl "180+2"]
[EndTime "12:44:37 PDT"]
[Termination "yian123 won by checkmate"]

1. e4 {[%clk 0:03:01.9]} 1... g6 {[%clk 0:02:57.5]} 2. d4 {[%clk 0:03:02.7]}
2... Bg7 {[%clk 0:02:58.2]} 3. Nc3 {[%clk 0:03:04.2]} 3... c6 {[%clk 0:02:59.5]}
4. h3 {[%clk 0:03:04.3]} 4... d5 {[%clk 0:02:59.4]} 5. Nf3 {[%clk 0:03:05.8]}
5... dxe4 {[%clk 0:02:48.7]} 6. Nxe4 {[%clk 0:03:06.6]} 6... Nf6 {[%clk
0:02:49.5]} 7. Nxf6+ {[%clk 0:03:02.1]} 7... Bxf6 {[%clk 0:02:48.9]} 8. Bh6
{[%clk 0:02:58.3]} 8... Qa5+ {[%clk 0:02:48]} 9. c3 {[%clk 0:02:58.8]} 9... Qh5
{[%clk 0:02:49.1]} 10. Qd2 {[%clk 0:02:57.1]} 10... Bf5 {[%clk 0:02:33.1]} 11.
Be2 {[%clk 0:02:53.7]} 11... Be4 {[%clk 0:02:27.8]} 12. Ne5 {[%clk 0:02:45.6]}
12... Qh4 {[%clk 0:02:00.3]} 13. g3 {[%clk 0:02:44.8]} 13... Qxh6 {[%clk
0:01:56.6]} 14. Qxh6 {[%clk 0:02:45.6]} 14... Bxh1 {[%clk 0:01:58.3]} 15. Ng4
{[%clk 0:02:46.4]} 15... Nd7 {[%clk 0:01:56.6]} 16. Nxf6+ {[%clk 0:02:39.7]}
16... Nxf6 {[%clk 0:01:56.5]} 17. f3 {[%clk 0:02:40.8]} 17... Rg8 {[%clk
0:01:46.2]} 18. Qe3 {[%clk 0:02:37.2]} 18... Bg2 {[%clk 0:01:45.5]} 19. h4
{[%clk 0:02:15.2]} 19... h5 {[%clk 0:01:40.9]} 20. Kf2 {[%clk 0:02:10.5]} 20...
Bh3 {[%clk 0:01:41.2]} 21. Bc4 {[%clk 0:02:11.4]} 21... Bf5 {[%clk 0:01:30.2]}
22. Qe5 {[%clk 0:02:05.1]} 22... Kf8 {[%clk 0:01:09.7]} 23. Re1 {[%clk
0:01:57.5]} 23... Re8 {[%clk 0:01:06.7]} 24. Qc7 {[%clk 0:01:57.3]} 24... Bc8
{[%clk 0:01:06.2]} 25. Bb3 {[%clk 0:01:49.6]} 25... g5 {[%clk 0:01:05.7]} 26.
hxg5 {[%clk 0:01:42.1]} 26... Rxg5 {[%clk 0:01:07.6]} 27. Re5 {[%clk 0:01:20.1]}
27... Rg6 {[%clk 0:01:00.1]} 28. a4 {[%clk 0:01:09.1]} 28... a6 {[%clk
0:00:49.1]} 29. a5 {[%clk 0:01:07.5]} 29... Rh6 {[%clk 0:00:35.4]} 30. Rg5
{[%clk 0:00:52.6]} 30... Nh7 {[%clk 0:00:27.9]} 31. Rc5 {[%clk 0:00:42.8]} 31...
Rd6 {[%clk 0:00:19.9]} 32. Rxh5 {[%clk 0:00:38.1]} 32... Kg7 {[%clk 0:00:12.6]}
33. Bxf7 {[%clk 0:00:25.8]} 33... Rf8 {[%clk 0:00:08.4]} 34. Qxe7 {[%clk
0:00:21.1]} 34... Rd7 {[%clk 0:00:09]} 35. Rxh7+ {[%clk 0:00:20.3]} 35... Kxh7
{[%clk 0:00:08.9]} 36. Qxf8 {[%clk 0:00:21.4]} 36... Rc7 {[%clk 0:00:09.7]} 37.
Qg8+ {[%clk 0:00:22.1]} 37... Kh6 {[%clk 0:00:11.3]} 38. Qg6# {[%clk 0:00:23.6]}
1-0

[Event "*** Titled Tuesday 3|2 Blitz"]
[Site "Chess.com"]
[Date "2016.05.03"]
[Round "8"]
[White "pKiLz5Rn9b"]
[Black "SmoothAsAHedgehog"]
[Result "0-1"]
[WhiteElo "2399"]
[BlackElo "2533"]
[TimeControl "180+2"]
[EndTime "12:44:39 PDT"]
[Termination "SmoothAsAHedgehog won by resignation"]

1. e4 {[%clk 0:03:01.9]} 1... e5 {[%clk 0:03:00.5]} 2. Nf3 {[%clk 0:03:03]} 2...
Nc6 {[%clk 0:03:02]} 3. Bc4 {[%clk 0:03:04.3]} 3... Bc5 {[%clk 0:03:02.6]} 4. c3
{[%clk 0:03:05.9]} 4... Nf6 {[%clk 0:03:04]} 5. d3 {[%clk 0:03:07.5]} 5... d6
{[%clk 0:03:04.6]} 6. Nbd2 {[%clk 0:03:08.5]} 6... Bb6 {[%clk 0:03:06.1]} 7. h3
{[%clk 0:03:09.7]} 7... Ne7 {[%clk 0:03:08]} 8. Bb3 {[%clk 0:03:10.7]} 8... Ng6
{[%clk 0:03:07.6]} 9. Nf1 {[%clk 0:03:12.2]} 9... h6 {[%clk 0:03:08.7]} 10. Ng3
{[%clk 0:03:13.7]} 10... O-O {[%clk 0:03:06.9]} 11. O-O {[%clk 0:03:14.9]} 11...
Nh7 {[%clk 0:03:08.5]} 12. d4 {[%clk 0:03:14.8]} 12... Qf6 {[%clk 0:03:08.3]}
13. Be3 {[%clk 0:03:06.6]} 13... Ng5 {[%clk 0:03:07.5]} 14. Nxg5 {[%clk
0:03:04]} 14... hxg5 {[%clk 0:03:08.9]} 15. Nf5 {[%clk 0:03:04.3]} 15... Bxf5
{[%clk 0:02:59.9]} 16. exf5 {[%clk 0:02:58]} 16... Qxf5 {[%clk 0:02:58.2]} 17.
Bc2 {[%clk 0:02:41.6]} 17... Qf6 {[%clk 0:02:55.5]} 18. Qh5 {[%clk 0:02:42.4]}
18... exd4 {[%clk 0:02:33.1]} 19. Bxg5 {[%clk 0:02:38.5]} 19... Qe5 {[%clk
0:02:23.3]} 20. Rae1 {[%clk 0:02:30.8]} 20... Qc5 {[%clk 0:02:19.1]} 21. Bb3
{[%clk 0:02:26.9]} 21... Qf5 {[%clk 0:01:21.1]} 22. Kh2 {[%clk 0:02:01.6]} 22...
Nf4 {[%clk 0:01:10.2]} 23. Qh4 {[%clk 0:01:59.7]} 23... Ng6 {[%clk 0:01:09.6]}
24. Qg3 {[%clk 0:02:00.7]} 24... Rae8 {[%clk 0:01:05.3]} 25. cxd4 {[%clk
0:02:01]} 25... Bxd4 {[%clk 0:01:03.7]} 26. f4 {[%clk 0:01:59.1]} 26... d5
{[%clk 0:01:00.7]} 27. Qf3 {[%clk 0:01:57.8]} 27... c6 {[%clk 0:01:01.5]} 28. g4
{[%clk 0:01:58]} 28... Qd7 {[%clk 0:00:57.4]} 29. f5 {[%clk 0:01:59.4]} 29...
Ne5 {[%clk 0:00:56.7]} 30. Qg3 {[%clk 0:01:57.1]} 30... f6 {[%clk 0:00:57.1]}
31. Bc1 {[%clk 0:01:55.6]} 31... Bc5 {[%clk 0:00:58]} 32. g5 {[%clk 0:01:56.9]}
32... Bd6 {[%clk 0:00:58.9]} 33. Kh1 {[%clk 0:01:55.9]} 33... Nc4 {[%clk
0:00:55.2]} 34. Qg4 {[%clk 0:01:53.7]} 34... Rxe1 {[%clk 0:00:54.6]} 35. Rxe1
{[%clk 0:01:54.6]} 35... Ne5 {[%clk 0:00:56.1]} 36. Qg2 {[%clk 0:01:16.2]} 36...
Qxf5 {[%clk 0:00:51.6]} 37. Rf1 {[%clk 0:01:14.4]} 37... Qe6 {[%clk 0:00:38.7]}
38. gxf6 {[%clk 0:01:15.4]} 38... Rxf6 {[%clk 0:00:36.6]} 39. Re1 {[%clk
0:01:16.7]} 39... Rg6 {[%clk 0:00:35.2]} 40. Qh2 {[%clk 0:01:08.7]} 40... Qf5
{[%clk 0:00:27.4]} 41. Re3 {[%clk 0:00:39.3]} 41... Qf1+ {[%clk 0:00:26.2]} 0-1

[Event "*** Titled Tuesday 3|2 Blitz"]
[Site "Chess.com"]
[Date "2016.05.03"]
[Round "8"]
[White "Winehouse83"]
[Black "Zazuliak"]
[Result "0-1"]
[WhiteElo "2352"]
[BlackElo "2378"]
[TimeControl "180+2"]
[EndTime "12:44:42 PDT"]
[Termination "Zazuliak won by resignation"]

1. d4 {[%clk 0:03:01.9]} 1... Nf6 {[%clk 0:02:59.2]} 2. c4 {[%clk 0:03:02.6]}
2... g6 {[%clk 0:02:59.3]} 3. Nc3 {[%clk 0:03:02.7]} 3... Bg7 {[%clk 0:03:00]}
4. e4 {[%clk 0:03:04.1]} 4... d6 {[%clk 0:03:00.9]} 5. Be2 {[%clk 0:03:05.5]}
5... O-O {[%clk 0:03:01.6]} 6. Bg5 {[%clk 0:03:06.6]} 6... Na6 {[%clk 0:02:55]}
7. f4 {[%clk 0:03:06]} 7... h6 {[%clk 0:02:46.5]} 8. Bh4 {[%clk 0:03:04.9]} 8...
c5 {[%clk 0:02:46.9]} 9. d5 {[%clk 0:03:00.1]} 9... Qb6 {[%clk 0:02:08.1]} 10.
Qd2 {[%clk 0:02:56.3]} 10... e6 {[%clk 0:02:00.9]} 11. Nf3 {[%clk 0:02:29.7]}
11... exd5 {[%clk 0:02:01]} 12. exd5 {[%clk 0:02:31.6]} 12... Bf5 {[%clk
0:01:55]} 13. O-O {[%clk 0:02:30.9]} 13... Rfe8 {[%clk 0:01:52.8]} 14. Bxf6
{[%clk 0:02:19.4]} 14... Bxf6 {[%clk 0:01:52.9]} 15. Bd3 {[%clk 0:02:20.5]}
15... Bxd3 {[%clk 0:01:50.7]} 16. Qxd3 {[%clk 0:02:22.4]} 16... Nb4 {[%clk
0:01:39.3]} 17. Qd2 {[%clk 0:02:16.3]} 17... Re7 {[%clk 0:01:15.5]} 18. a3
{[%clk 0:02:01.9]} 18... Na6 {[%clk 0:01:09.4]} 19. Rae1 {[%clk 0:02:02]} 19...
Rae8 {[%clk 0:01:09.5]} 20. Nb5 {[%clk 0:01:38.3]} 20... Nc7 {[%clk 0:01:03.3]}
21. a4 {[%clk 0:01:33.1]} 21... Nxb5 {[%clk 0:00:58.6]} 22. axb5 {[%clk
0:01:32.3]} 22... a6 {[%clk 0:00:57.9]} 23. bxa6 {[%clk 0:01:18.8]} 23... bxa6
{[%clk 0:00:56.6]} 24. Rxe7 {[%clk 0:00:57.7]} 24... Rxe7 {[%clk 0:00:56.8]} 25.
f5 {[%clk 0:00:59]} 25... g5 {[%clk 0:00:56.2]} 26. Re1 {[%clk 0:00:48.1]} 26...
Rxe1+ {[%clk 0:00:54.4]} 27. Qxe1 {[%clk 0:00:48.4]} 27... Qxb2 {[%clk
0:00:54.9]} 28. Qe8+ {[%clk 0:00:48.4]} 28... Kg7 {[%clk 0:00:55.9]} 29. Qc6
{[%clk 0:00:42.9]} 29... Qc1+ {[%clk 0:00:34.1]} 30. Kf2 {[%clk 0:00:42.5]}
30... Qxc4 {[%clk 0:00:32.7]} 31. Qxd6 {[%clk 0:00:42.4]} 31... Qc2+ {[%clk
0:00:31.7]} 32. Kg3 {[%clk 0:00:39.3]} 32... Qxf5 {[%clk 0:00:32.4]} 33. h3
{[%clk 0:00:21.2]} 33... c4 {[%clk 0:00:33]} 34. Kh2 {[%clk 0:00:22.2]} 34... c3
{[%clk 0:00:33.7]} 35. Qc6 {[%clk 0:00:20.4]} 35... c2 {[%clk 0:00:34.6]} 36. d6
{[%clk 0:00:21.7]} 36... Qf4+ {[%clk 0:00:35.4]} 37. g3 {[%clk 0:00:22.3]} 37...
Qxf3 {[%clk 0:00:34.8]} 38. Qxf3 {[%clk 0:00:22.2]} 38... c1=Q {[%clk 0:00:35]}
0-1

[Event "*** Titled Tuesday 3|2 Blitz"]
[Site "Chess.com"]
[Date "2016.05.03"]
[Round "8"]
[White "Rickstereo"]
[Black "GMVladimir_Petkov"]
[Result "1-0"]
[WhiteElo "2212"]
[BlackElo "2254"]
[TimeControl "180+2"]
[EndTime "12:44:43 PDT"]
[Termination "Rickstereo won by resignation"]

1. c4 {[%clk 0:03:01.9]} 1... e5 {[%clk 0:03:00.5]} 2. Nc3 {[%clk 0:03:01.5]}
2... Bb4 {[%clk 0:03:00.6]} 3. Nd5 {[%clk 0:03:01.4]} 3... a5 {[%clk 0:02:59.3]}
4. Nf3 {[%clk 0:02:58]} 4... e4 {[%clk 0:02:58.7]} 5. Nd4 {[%clk 0:02:58]} 5...
Nc6 {[%clk 0:02:59.8]} 6. Nb5 {[%clk 0:02:52.1]} 6... Bd6 {[%clk 0:02:56.6]} 7.
d3 {[%clk 0:02:36.5]} 7... exd3 {[%clk 0:02:51.6]} 8. Nxd6+ {[%clk 0:02:30]}
8... cxd6 {[%clk 0:02:52.2]} 9. Qxd3 {[%clk 0:02:31]} 9... Nge7 {[%clk
0:02:53.8]} 10. Bg5 {[%clk 0:02:27.5]} 10... f6 {[%clk 0:02:54.4]} 11. Be3
{[%clk 0:02:25.9]} 11... Nxd5 {[%clk 0:02:52.6]} 12. Qxd5 {[%clk 0:02:26.1]}
12... Nb4 {[%clk 0:02:50.2]} 13. Qd2 {[%clk 0:02:16.6]} 13... Ra6 {[%clk
0:02:40.9]} 14. a3 {[%clk 0:02:16.5]} 14... Nc6 {[%clk 0:02:42]} 15. f4 {[%clk
0:01:46.1]} 15... a4 {[%clk 0:02:42.5]} 16. Bf2 {[%clk 0:01:41.9]} 16... Qa5
{[%clk 0:02:42.2]} 17. Rd1 {[%clk 0:01:32.6]} 17... Ke7 {[%clk 0:02:41.4]} 18.
e4 {[%clk 0:01:30.5]} 18... Qxd2+ {[%clk 0:02:40.7]} 19. Rxd2 {[%clk 0:01:31.2]}
19... Ra5 {[%clk 0:02:06.2]} 20. Bb6 {[%clk 0:01:25]} 20... Ra6 {[%clk 0:02:07]}
21. Bc7 {[%clk 0:01:25.8]} 21... Na5 {[%clk 0:02:06.6]} 22. c5 {[%clk
0:01:25.1]} 22... dxc5 {[%clk 0:02:02.5]} 23. Bxa6 {[%clk 0:01:23.1]} 23... Nb3
{[%clk 0:02:02.5]} 24. Bd6+ {[%clk 0:01:15.9]} 24... Kd8 {[%clk 0:02:02.7]} 25.
Bc4 {[%clk 0:01:13.6]} 25... Nxd2 {[%clk 0:02:03.1]} 26. Kxd2 {[%clk 0:01:15.5]}
26... b6 {[%clk 0:02:04.9]} 27. e5 {[%clk 0:01:13.8]} 27... Bb7 {[%clk
0:02:05.8]} 28. Rg1 {[%clk 0:01:11.3]} 28... fxe5 {[%clk 0:02:05.9]} 29. fxe5
{[%clk 0:01:12.3]} 29... Bc6 {[%clk 0:02:03.6]} 30. g3 {[%clk 0:01:11.3]} 30...
h5 {[%clk 0:02:00.5]} 31. Rf1 {[%clk 0:01:10.4]} 31... h4 {[%clk 0:02:01.8]} 32.
Rf8+ {[%clk 0:01:08.9]} 32... Rxf8 {[%clk 0:02:02.4]} 33. Bxf8 {[%clk
0:01:10.8]} 33... g5 {[%clk 0:02:03.6]} 34. gxh4 {[%clk 0:01:07.7]} 34... gxh4
{[%clk 0:02:04.9]} 35. Bh6 {[%clk 0:01:07.5]} 35... h3 {[%clk 0:02:05.7]} 36.
Bg5+ {[%clk 0:01:04.5]} 36... Kc7 {[%clk 0:02:06.3]} 37. Ke3 {[%clk 0:01:05.8]}
37... Bg2 {[%clk 0:02:04.7]} 38. Bb5 {[%clk 0:01:04.9]} 38... d5 {[%clk
0:02:03.2]} 39. exd6+ {[%clk 0:01:04.6]} 39... Kxd6 {[%clk 0:02:04.7]} 40. Bxa4
{[%clk 0:01:05.8]} 40... Kd5 {[%clk 0:02:06.1]} 41. Bb3+ {[%clk 0:01:05.1]}
41... c4 {[%clk 0:02:07.2]} 42. Bc2 {[%clk 0:01:05.5]} 42... b5 {[%clk
0:02:08.6]} 43. Bf6 {[%clk 0:01:05.4]} 43... Bh1 {[%clk 0:02:08.2]} 44. Bd4
{[%clk 0:01:06]} 44... Bg2 {[%clk 0:02:09.6]} 45. Bd1 {[%clk 0:01:06.8]} 45...
Bh1 {[%clk 0:02:10.1]} 46. Bg4 {[%clk 0:01:07.8]} 46... Bg2 {[%clk 0:02:11.1]}
47. Bc8 {[%clk 0:01:08.8]} 47... Kd6 {[%clk 0:02:10.2]} 48. Kf4 {[%clk
0:01:04.9]} 48... Kc7 {[%clk 0:02:11.2]} 49. Bf5 {[%clk 0:01:04]} 49... Kd6
{[%clk 0:02:11]} 50. Be4 {[%clk 0:01:05]} 50... Bf1 {[%clk 0:02:12.1]} 51. Kg3
{[%clk 0:01:04.3]} 51... Ke6 {[%clk 0:02:11.9]} 52. Bc6 {[%clk 0:01:03.2]} 52...
Kd6 {[%clk 0:02:13.2]} 53. Bxb5 {[%clk 0:00:55.5]} 53... Kd5 {[%clk 0:02:14.1]}
54. Bc3 {[%clk 0:00:55.5]} 54... Kc5 {[%clk 0:02:15.6]} 55. Bd7 {[%clk
0:00:54.2]} 55... Bg2 {[%clk 0:02:16.9]} 56. Bxh3 {[%clk 0:00:55.1]} 56... Be4
{[%clk 0:02:17.9]} 57. Bg2 {[%clk 0:00:55.6]} 57... Bd3 {[%clk 0:02:17.9]} 58.
h4 {[%clk 0:00:57]} 58... Kb5 {[%clk 0:02:19.7]} 59. Kf4 {[%clk 0:00:57.9]}
59... Ka4 {[%clk 0:02:21.3]} 60. Kg5 {[%clk 0:00:58.9]} 60... Be2 {[%clk
0:02:22.5]} 61. h5 {[%clk 0:00:59.5]} 61... Bd3 {[%clk 0:02:23.4]} 62. h6 {[%clk
0:00:59.6]} 62... Kb3 {[%clk 0:02:25]} 63. Bh3 {[%clk 0:01:01.1]} 63... Bh7
{[%clk 0:02:23.6]} 64. Bf5 {[%clk 0:01:02.2]} 64... Bg8 {[%clk 0:02:25.3]} 65.
Kf6 {[%clk 0:01:02.2]} 65... Ka2 {[%clk 0:02:25.5]} 66. Kg7 {[%clk 0:01:02.1]}
66... Bh7 {[%clk 0:02:24.1]} 67. Kxh7 {[%clk 0:00:58.7]} 1-0

[Event "*** Titled Tuesday 3|2 Blitz"]
[Site "Chess.com"]
[Date "2016.05.03"]
[Round "8"]
[White "chito89"]
[Black "GeorgMeier"]
[Result "0-1"]
[WhiteElo "2679"]
[BlackElo "2761"]
[TimeControl "180+2"]
[EndTime "12:44:44 PDT"]
[Termination "GeorgMeier won by resignation"]

1. e4 {[%clk 0:03:01.9]} 1... e6 {[%clk 0:03:01.2]} 2. Qe2 {[%clk 0:03:01.8]}
2... c5 {[%clk 0:03:01.8]} 3. g3 {[%clk 0:03:01.6]} 3... Nc6 {[%clk 0:03:02.9]}
4. c3 {[%clk 0:03:01.5]} 4... Nf6 {[%clk 0:03:00]} 5. Bg2 {[%clk 0:03:01]} 5...
d5 {[%clk 0:03:00]} 6. exd5 {[%clk 0:03:00.4]} 6... Nxd5 {[%clk 0:03:00.1]} 7.
Nf3 {[%clk 0:03:01.9]} 7... Be7 {[%clk 0:02:59.9]} 8. O-O {[%clk 0:03:02.3]}
8... O-O {[%clk 0:03:01.1]} 9. Rd1 {[%clk 0:03:02.8]} 9... Bf6 {[%clk
0:02:56.5]} 10. Na3 {[%clk 0:03:01.9]} 10... b6 {[%clk 0:02:56.9]} 11. d4 {[%clk
0:02:56.5]} 11... cxd4 {[%clk 0:02:56.5]} 12. cxd4 {[%clk 0:02:58.1]} 12... Bb7
{[%clk 0:02:56.6]} 13. h4 {[%clk 0:02:51.6]} 13... Rc8 {[%clk 0:02:55.8]} 14.
Bg5 {[%clk 0:02:50.9]} 14... h6 {[%clk 0:02:56.3]} 15. Bxf6 {[%clk 0:02:50.9]}
15... Qxf6 {[%clk 0:02:56.5]} 16. Ne5 {[%clk 0:02:50.9]} 16... Rfd8 {[%clk
0:02:51.2]} 17. Rac1 {[%clk 0:02:49]} 17... Nxd4 {[%clk 0:02:48.1]} 18. Qe4
{[%clk 0:02:37.3]} 18... Rxc1 {[%clk 0:02:21.9]} 19. Rxc1 {[%clk 0:02:37.2]}
19... Nc3 {[%clk 0:01:58.1]} 20. Qxb7 {[%clk 0:02:37.2]} 20... Nce2+ {[%clk
0:01:58.4]} 21. Kh2 {[%clk 0:02:38.7]} 21... Nxc1 {[%clk 0:01:58.9]} 22. f4
{[%clk 0:02:39]} 22... Nxa2 {[%clk 0:00:54.3]} 23. Qxa7 {[%clk 0:02:37.6]} 23...
b5 {[%clk 0:00:51.8]} 24. Qc7 {[%clk 0:02:22.2]} 24... Nb4 {[%clk 0:00:43.4]}
25. Ng4 {[%clk 0:02:22.2]} 25... Nf3+ {[%clk 0:00:42.4]} 26. Kh3 {[%clk
0:02:12.8]} 26... Ng1+ {[%clk 0:00:42.3]} 27. Kh2 {[%clk 0:02:13.6]} 27... Nf3+
{[%clk 0:00:44.2]} 28. Bxf3 {[%clk 0:02:13]} 28... Qxb2+ {[%clk 0:00:45]} 29.
Kh3 {[%clk 0:02:14.6]} 29... Rf8 {[%clk 0:00:37.9]} 30. Nxb5 {[%clk 0:02:03.2]}
30... Nd3 {[%clk 0:00:38.8]} 31. Qd7 {[%clk 0:02:00.3]} 31... Qd2 {[%clk
0:00:36]} 32. h5 {[%clk 0:01:32.6]} 32... Nf2+ {[%clk 0:00:35.4]} 33. Nxf2
{[%clk 0:01:30.8]} 33... Qxd7 {[%clk 0:00:37.3]} 34. Nc3 {[%clk 0:01:31.5]}
34... Qd4 {[%clk 0:00:37.1]} 35. Ncd1 {[%clk 0:01:26.8]} 35... Rc8 {[%clk
0:00:36]} 36. Ng4 {[%clk 0:01:19]} 36... Rc1 {[%clk 0:00:32.7]} 37. Nge3 {[%clk
0:01:19]} 37... Qd2 {[%clk 0:00:31.7]} 38. Kg4 {[%clk 0:01:11.4]} 38... Ra1
{[%clk 0:00:32.8]} 39. f5 {[%clk 0:01:06.6]} 39... Ra4+ {[%clk 0:00:32.6]} 40.
Kh3 {[%clk 0:01:06.4]} 40... Ra3 {[%clk 0:00:34.1]} 41. fxe6 {[%clk 0:01:06.3]}
41... fxe6 {[%clk 0:00:35.5]} 42. Nc4 {[%clk 0:01:05]} 42... Qd3 {[%clk
0:00:30.6]} 43. Nde3 {[%clk 0:01:04.5]} 43... Rc3 {[%clk 0:00:31.2]} 44. Bg4
{[%clk 0:01:05]} 44... Rxc4 {[%clk 0:00:27.2]} 45. Bxe6+ {[%clk 0:01:05.2]}
45... Kf8 {[%clk 0:00:28.7]} 46. Nxc4 {[%clk 0:01:04.9]} 46... Qe4 {[%clk
0:00:30.2]} 0-1

[Event "*** Titled Tuesday 3|2 Blitz"]
[Site "Chess.com"]
[Date "2016.05.03"]
[Round "8"]
[White "oskariot"]
[Black "BartoszSocko"]
[Result "0-1"]
[WhiteElo "2433"]
[BlackElo "2651"]
[TimeControl "180+2"]
[EndTime "12:45:26 PDT"]
[Termination "BartoszSocko won by resignation"]

1. e4 {[%clk 0:03:01.9]} 1... e6 {[%clk 0:03:01.9]} 2. d4 {[%clk 0:03:00.7]}
2... d5 {[%clk 0:03:03]} 3. Nc3 {[%clk 0:02:56.4]} 3... Bb4 {[%clk 0:03:03.6]}
4. e5 {[%clk 0:02:56.9]} 4... Ne7 {[%clk 0:03:03.9]} 5. a3 {[%clk 0:02:57.8]}
5... Bxc3+ {[%clk 0:03:04.3]} 6. bxc3 {[%clk 0:02:59.7]} 6... c5 {[%clk
0:03:05.9]} 7. Nf3 {[%clk 0:02:59.8]} 7... Bd7 {[%clk 0:03:02.5]} 8. a4 {[%clk
0:02:55.7]} 8... Qc7 {[%clk 0:03:03]} 9. Be2 {[%clk 0:02:52.6]} 9... Nbc6 {[%clk
0:03:04.1]} 10. O-O {[%clk 0:02:53.2]} 10... O-O {[%clk 0:02:59.1]} 11. Ba3
{[%clk 0:02:23.1]} 11... cxd4 {[%clk 0:03:00.2]} 12. cxd4 {[%clk 0:02:17.8]}
12... Rfc8 {[%clk 0:03:01.1]} 13. Bd3 {[%clk 0:01:52.4]} 13... Ng6 {[%clk
0:02:56.1]} 14. g3 {[%clk 0:01:48.7]} 14... Na5 {[%clk 0:02:54.5]} 15. Bd6
{[%clk 0:01:40.8]} 15... Qd8 {[%clk 0:02:54.8]} 16. h4 {[%clk 0:01:41.8]} 16...
Nc4 {[%clk 0:02:55.8]} 17. h5 {[%clk 0:01:40.1]} 17... Nf8 {[%clk 0:02:52.2]}
18. h6 {[%clk 0:01:25.2]} 18... gxh6 {[%clk 0:02:46]} 19. Bb4 {[%clk 0:01:05.6]}
19... f5 {[%clk 0:02:28.9]} 20. Kg2 {[%clk 0:00:48.5]} 20... a5 {[%clk
0:02:29.5]} 21. Bd2 {[%clk 0:00:45.7]} 21... Be8 {[%clk 0:02:13.3]} 22. Rh1
{[%clk 0:00:43.8]} 22... h5 {[%clk 0:02:11.6]} 23. Bg5 {[%clk 0:00:44.1]} 23...
Qc7 {[%clk 0:02:08.7]} 24. Bf6 {[%clk 0:00:31.3]} 24... Nb2 {[%clk 0:02:07]} 25.
Qd2 {[%clk 0:00:27.1]} 25... Nxd3 {[%clk 0:02:07.7]} 26. cxd3 {[%clk 0:00:25]}
26... Bg6 {[%clk 0:02:00.6]} 27. Qg5 {[%clk 0:00:19.8]} 27... Kf7 {[%clk
0:01:53.7]} 28. Rxh5 {[%clk 0:00:16.3]} 28... Ke8 {[%clk 0:01:54.2]} 29. Rh6
{[%clk 0:00:14.4]} 29... Qf7 {[%clk 0:01:49.5]} 30. Rhh1 {[%clk 0:00:15.2]}
30... Rc3 {[%clk 0:01:48.9]} 31. Rac1 {[%clk 0:00:15.5]} 31... Rac8 {[%clk
0:01:45.2]} 32. Rxc3 {[%clk 0:00:16.1]} 32... Rxc3 {[%clk 0:01:47.1]} 33. Rb1
{[%clk 0:00:14]} 33... Rxd3 {[%clk 0:01:41.5]} 34. Qc1 {[%clk 0:00:14.2]} 34...
Qd7 {[%clk 0:01:39.6]} 35. Qc5 {[%clk 0:00:15.1]} 35... f4 {[%clk 0:01:31.7]}
36. Rb6 {[%clk 0:00:09.3]} 36... Be4 {[%clk 0:01:31.9]} 37. Rd6 {[%clk
0:00:10.5]} 37... Bxf3+ {[%clk 0:01:30.9]} 38. Kh2 {[%clk 0:00:05.5]} 38...
fxg3+ {[%clk 0:01:11.4]} 39. fxg3 {[%clk 0:00:05.2]} 39... Rd2+ {[%clk
0:01:04.9]} 40. Kg1 {[%clk 0:00:05.1]} 40... b6 {[%clk 0:00:51.4]} 41. Qxb6
{[%clk 0:00:03.3]} 41... Qxa4 {[%clk 0:00:51]} 42. Qd8+ {[%clk 0:00:04.1]} 42...
Kf7 {[%clk 0:00:51.8]} 43. Qe7+ {[%clk 0:00:03.1]} 43... Kg6 {[%clk 0:00:53.2]}
44. Qg7+ {[%clk 0:00:04.3]} 44... Kf5 {[%clk 0:00:54.6]} 45. Qg5+ {[%clk
0:00:05.3]} 45... Ke4 {[%clk 0:00:56]} 46. Qf4+ {[%clk 0:00:06.7]} 46... Kd3
{[%clk 0:00:56.4]} 47. Qxf3+ {[%clk 0:00:08.1]} 47... Kc2 {[%clk 0:00:57.3]} 48.
Qf1 {[%clk 0:00:02.5]} 48... Rd1 {[%clk 0:00:58.4]} 49. Qxd1+ {[%clk 0:00:03.5]}
49... Kxd1 {[%clk 0:00:59.9]} 50. Bg5 {[%clk 0:00:05.2]} 50... Qc2 {[%clk
0:00:57.8]} 0-1

[Event "*** Titled Tuesday 3|2 Blitz"]
[Site "Chess.com"]
[Date "2016.05.03"]
[Round "8"]
[White "Inopov"]
[Black "Journey_to_GrandMaster_YT"]
[Result "1-0"]
[WhiteElo "2476"]
[BlackElo "2346"]
[TimeControl "180+2"]
[EndTime "12:45:38 PDT"]
[Termination "Inopov won by resignation"]

1. e4 {[%clk 0:02:57.3]} 1... d6 {[%clk 0:03:01.2]} 2. d4 {[%clk 0:02:51.3]}
2... Nf6 {[%clk 0:03:02.3]} 3. Nc3 {[%clk 0:02:51.5]} 3... e5 {[%clk 0:03:03.4]}
4. Nf3 {[%clk 0:02:49.2]} 4... Nbd7 {[%clk 0:03:02.8]} 5. Bc4 {[%clk 0:02:49.8]}
5... Be7 {[%clk 0:03:03.8]} 6. O-O {[%clk 0:02:49.6]} 6... O-O {[%clk
0:03:04.3]} 7. a4 {[%clk 0:02:50.6]} 7... c6 {[%clk 0:03:05.3]} 8. Re1 {[%clk
0:02:35.2]} 8... a5 {[%clk 0:03:05.7]} 9. Be3 {[%clk 0:02:27.9]} 9... Ng4 {[%clk
0:03:02.6]} 10. Bd2 {[%clk 0:02:24.2]} 10... Qb6 {[%clk 0:02:51.5]} 11. Bg5
{[%clk 0:01:41.3]} 11... Bxg5 {[%clk 0:02:18.5]} 12. Nxg5 {[%clk 0:01:43.2]}
12... exd4 {[%clk 0:02:19.1]} 13. Qxg4 {[%clk 0:01:43.7]} 13... Nf6 {[%clk
0:02:12.9]} 14. Qg3 {[%clk 0:01:37.2]} 14... dxc3 {[%clk 0:02:12.8]} 15. Qxc3
{[%clk 0:01:37.5]} 15... h6 {[%clk 0:02:12.4]} 16. Nf3 {[%clk 0:01:37.2]} 16...
d5 {[%clk 0:02:10.6]} 17. exd5 {[%clk 0:01:36.2]} 17... cxd5 {[%clk 0:02:11.7]}
18. Bb3 {[%clk 0:01:29]} 18... Be6 {[%clk 0:02:07.3]} 19. Nd4 {[%clk 0:01:22]}
19... Rac8 {[%clk 0:02:07]} 20. Qe3 {[%clk 0:01:21.9]} 20... Ne4 {[%clk
0:02:01.6]} 21. Rad1 {[%clk 0:01:13.9]} 21... Nc5 {[%clk 0:01:56.4]} 22. Nb5
{[%clk 0:01:02.7]} 22... Rfe8 {[%clk 0:01:43.6]} 23. c3 {[%clk 0:00:36.5]} 23...
Qd8 {[%clk 0:01:19.8]} 24. Bc2 {[%clk 0:00:35.1]} 24... Qb6 {[%clk 0:01:01.3]}
25. Qg3 {[%clk 0:00:32.9]} 25... Bd7 {[%clk 0:00:54.4]} 26. Nd6 {[%clk
0:00:29.6]} 26... Rxe1+ {[%clk 0:00:54.5]} 27. Rxe1 {[%clk 0:00:31]} 27... Rf8
{[%clk 0:00:53.6]} 28. Bf5 {[%clk 0:00:23.7]} 28... Qc7 {[%clk 0:00:40.8]} 29.
Bxd7 {[%clk 0:00:18.2]} 29... Nxd7 {[%clk 0:00:40.4]} 30. Re7 {[%clk 0:00:15.5]}
30... d4 {[%clk 0:00:33.8]} 31. Nf5 {[%clk 0:00:11.2]} 31... Qxg3 {[%clk
0:00:30]} 32. hxg3 {[%clk 0:00:13.1]} 32... Nc5 {[%clk 0:00:17.2]} 33. cxd4
{[%clk 0:00:10.9]} 33... Nxa4 {[%clk 0:00:16.8]} 34. Rxb7 {[%clk 0:00:12.4]}
34... Re8 {[%clk 0:00:15.9]} 35. Rb5 {[%clk 0:00:12.3]} 35... Re1+ {[%clk
0:00:15]} 36. Kh2 {[%clk 0:00:13.3]} 36... Re2 {[%clk 0:00:16.9]} 37. d5 {[%clk
0:00:13.8]} 37... Nxb2 {[%clk 0:00:14.4]} 38. d6 {[%clk 0:00:13.8]} 38... Rd2
{[%clk 0:00:13.3]} 39. d7 {[%clk 0:00:14.4]} 39... Nc4 {[%clk 0:00:04.3]} 40.
Rb8+ {[%clk 0:00:14.5]} 40... Kh7 {[%clk 0:00:05.8]} 41. d8=Q {[%clk 0:00:16.2]}
41... Rxd8 {[%clk 0:00:07.5]} 42. Rxd8 {[%clk 0:00:17.9]} 42... Kg6 {[%clk
0:00:09.3]} 43. Ne3 {[%clk 0:00:17.5]} 43... Ne5 {[%clk 0:00:06.9]} 44. Rd5
{[%clk 0:00:17.5]} 44... f6 {[%clk 0:00:07.6]} 45. Rxa5 {[%clk 0:00:18.1]} 1-0